bitfinex-derivatives/quotes_BTCF0:USTF0_20240815
["timestamp","ask_amount","ask_price","bid_price","bid_amount"]
[1723708383481,0.269383,58062.0,58061.0,0.060284]
[1723708385180,0.174083,58062.0,58061.0,0.060284]
[1723708387280,0.120883,58062.0,58061.0,0.060284]
[1723708389381,0.060286,58060.0,58059.0,0.060286]
[1723708390988,0.065286,58060.0,58059.0,0.060286]
[1723708393492,0.060286,58059.0,58058.0,0.0953]
[1723708393988,0.180861,58058.0,58055.0,0.06880334]
[1723708394193,0.180861,58058.0,58045.0,0.10326695]
[1723708394194,0.0603,58046.0,58045.0,0.06881208]
[1723708394393,0.060301,58045.0,58041.0,0.06881208]
[1723708394588,0.060306,58040.0,58039.0,3.8653]
[1723708394785,0.060306,58040.0,58039.0,0.35503031]
[1723708395296,0.060307,58039.0,58038.0,0.3608]
[1723708395591,0.1117542,58039.0,58038.0,0.3608]
[1723708396492,0.060307,58039.0,58038.0,0.3608]
[1723708397491,0.001,58040.0,58039.0,0.060307]
[1723708397694,0.060304,58042.0,58039.0,0.074307]
[1723708397882,0.060304,58042.0,58039.0,0.33406448]
[1723708398087,0.060305,58041.0,58039.0,0.38416448]
[1723708398401,0.060305,58041.0,58039.0,0.37016448]
[1723708399596,0.060305,58041.0,58039.0,0.38416448]
[1723708399992,0.060305,58041.0,58039.0,0.39816448]
[1723708400191,0.060305,58041.0,58039.0,0.33785748]
[1723708400595,0.061305,58041.0,58039.0,0.33785748]
[1723708401791,0.060306,58040.0,58039.0,0.33785748]
[1723708402193,0.060306,58040.0,58039.0,0.028]
[1723708403291,0.060306,58040.0,58039.0,0.014]
[1723708403493,0.061306,58040.0,58039.0,0.028]
[1723708407706,0.938986,58040.0,58037.0,0.00088]
[1723708407904,0.060317,58029.0,58019.0,0.06881208]
[1723708408103,0.481454,58020.0,58019.0,0.00804605]
[1723708408402,0.481454,58020.0,58014.0,0.00021637]
[1723708408403,0.060332,58015.0,58014.0,0.00021637]
[1723708410802,0.001,58015.0,58014.0,0.32373673]
[1723708410998,0.001,58015.0,58014.0,0.68453673]
[1723708411203,0.002,58015.0,58014.0,0.69053673]
[1723708411398,0.001,58015.0,58014.0,0.68453673]
[1723708411604,0.001,58015.0,58014.0,0.68953673]
[1723708412001,0.001,58015.0,58014.0,0.62920373]
[1723708412204,0.061332,58015.0,58014.0,0.62420373]
[1723708412400,0.062332,58015.0,58014.0,0.63120373]
[1723708413413,0.062332,58015.0,58014.0,0.27040373]
[1723708413806,0.062332,58015.0,58014.0,4.04040373]
[1723708414004,0.062332,58015.0,58014.0,4.03940373]
[1723708414505,0.062332,58015.0,58014.0,4.03340373]
[1723708414806,0.062332,58015.0,58014.0,4.02740373]
[1723708415010,0.061332,58015.0,58014.0,4.02740373]
[1723708415201,0.062332,58015.0,58014.0,4.02740373]
[1723708416412,0.062332,58015.0,58014.0,3.77021637]
[1723708417214,0.062332,58015.0,58014.0,3.77821637]
[1723708417711,0.062332,58015.0,58014.0,3.78521637]
[1723708417912,0.061332,58015.0,58014.0,3.77721637]
[1723708418308,0.062332,58015.0,58014.0,3.78421637]
[1723708418515,0.122664,58015.0,58014.0,0.01421637]
[1723708418706,0.121664,58015.0,58014.0,0.00021637]
[1723708418902,0.224064,58015.0,58014.0,0.01421637]
[1723708419908,0.224804,58015.0,58014.0,0.01421637]
[1723708420403,0.224804,58015.0,58014.0,0.01321637]
[1723708420709,1.141924,58015.0,58014.0,0.01321637]
[1723708420916,0.741924,58015.0,58014.0,0.01321637]
[1723708421109,1.140924,58015.0,58014.0,0.00821637]
[1723708421309,0.739924,58015.0,58014.0,0.00221637]
[1723708421817,0.223804,58015.0,58014.0,0.00021637]
[1723708422014,0.740924,58015.0,58014.0,0.00021637]
[1723708422718,0.060337,58010.0,58009.0,0.00025849]
[1723708423511,0.120682,58006.0,58005.0,3.77]
[1723708424219,0.060341,58006.0,58005.0,3.77]
[1723708424906,0.061341,58006.0,58005.0,3.778]
[1723708425112,0.062341,58006.0,58005.0,3.845342]
[1723708427022,0.062341,58006.0,58005.0,3.85358914]
[1723708427518,0.002,58006.0,58005.0,3.85358914]
[1723708427720,0.002,58006.0,58005.0,4.11359305]
[1723708430421,0.062341,58006.0,58005.0,4.10534591]
[1723708430625,0.062341,58006.0,58005.0,3.785]
[1723708432922,0.062341,58006.0,58005.0,3.845342]
[1723708433121,0.002,58006.0,58005.0,3.845342]
[1723708433420,0.00074,58015.0,58014.0,0.060333]
[1723708434416,0.00078646,58015.0,58014.0,0.060333]
[1723708434628,0.00078646,58015.0,58014.0,0.31882735]
[1723708434827,0.00178646,58015.0,58014.0,0.31882735]
[1723708435123,0.00278646,58015.0,58014.0,0.31882735]
[1723708435722,0.00178646,58015.0,58014.0,0.31882735]
[1723708435944,0.00278646,58015.0,58014.0,0.32582735]
[1723708436227,0.00278646,58015.0,58014.0,0.33482735]
[1723708436620,0.00278646,58015.0,58014.0,0.73482735]
[1723708436816,0.05131977,58029.0,58015.0,0.51708]
[1723708437016,0.00830053,58030.0,58029.0,0.060317]
[1723708437225,0.00830053,58030.0,58029.0,3.830317]
[1723708437714,0.060315,58031.0,58029.0,3.77]
[1723708437922,0.05131977,58033.0,58029.0,3.830317]
[1723708438318,0.05131977,58034.0,58029.0,3.830317]
[1723708438520,0.11163177,58034.0,58029.0,3.830317]
[1723708439025,0.060313,58033.0,58029.0,3.839317]
[1723708439221,0.001,58030.0,58029.0,3.839317]
[1723708439627,0.001,58030.0,58029.0,3.848317]
[1723708440935,0.001,58030.0,58029.0,3.847317]
[1723708441233,0.061316,58030.0,58029.0,0.017]
[1723708441531,0.062316,58030.0,58029.0,0.017]
[1723708442635,0.061316,58030.0,58029.0,0.009]
[1723708442827,0.062316,58030.0,58029.0,0.017]
[1723708443227,0.062316,58030.0,58029.0,3.787]
[1723708444235,0.060316,58030.0,58029.0,3.77]
[1723708444436,0.061316,58030.0,58029.0,3.785]
[1723708444633,0.061316,58030.0,58029.0,3.845317]
[1723708444634,0.001,58030.0,58029.0,3.845317]
[1723708445520,0.001,58030.0,58029.0,4.30199718]
[1723708445924,0.3608,58035.0,58029.0,4.23368018]
[1723708446124,0.061316,58030.0,58029.0,4.04360197]
[1723708446734,0.001,58030.0,58029.0,4.10391897]
[1723708447324,0.001,58030.0,58029.0,4.09591897]
[1723708447525,0.00025849,58036.0,58035.0,0.060311]
[1723708449236,0.00025849,58036.0,58035.0,0.061311]
[1723708450032,0.00025849,58036.0,58035.0,0.064311]
[1723708450734,0.00025849,58036.0,58035.0,0.32195011]
[1723708451239,0.00025849,58036.0,58035.0,0.3302814]
[1723708453538,0.00025849,58036.0,58035.0,1.3075124]
[1723708453737,0.00025849,58036.0,58035.0,1.48970458]
[1723708454141,0.00025849,58036.0,58035.0,0.51247358]
[1723708454442,0.00025849,58036.0,58035.0,0.3302814]
[1723708455345,0.00025849,58036.0,58035.0,0.51859321]
[1723708456438,0.0493,58049.0,58047.0,0.060298]
[1723708457036,0.0493,58049.0,58047.0,0.059558]
[1723708457239,0.0493,58049.0,58043.0,0.3608]
[1723708457647,0.0493,58049.0,58047.0,0.060298]
[1723708457840,0.0493,58049.0,58043.0,0.3608]
[1723708458146,0.060301,58045.0,58043.0,0.421102]
[1723708458847,0.060301,58045.0,58043.0,0.433102]
[1723708459233,0.061301,58045.0,58043.0,0.428102]
[1723708459439,0.062301,58045.0,58043.0,0.439102]
[1723708460850,0.062301,58045.0,58044.0,0.060302]
[1723708460851,0.061301,58045.0,58044.0,0.060302]
[1723708461952,0.060298,58048.0,58044.0,0.060302]
[1723708462142,0.001,58045.0,58044.0,0.069302]
[1723708462649,0.001,58045.0,58044.0,0.060302]
[1723708462950,0.001,58045.0,58044.0,0.079302]
[1723708463745,0.0493,58049.0,58046.0,0.060298]
[1723708465043,0.0503,58049.0,58046.0,0.067298]
[1723708465446,0.0493,58049.0,58047.0,0.060298]
[1723708465653,0.0503,58049.0,58047.0,0.060298]
[1723708466047,0.060298,58047.0,58046.0,0.015]
[1723708467042,0.060298,58047.0,58046.0,0.075299]
[1723708467249,0.11161677,58048.0,58046.0,0.075299]
[1723708467451,0.11161677,58048.0,58047.0,0.066298]
[1723708468147,0.11161677,58048.0,58047.0,0.060298]
[1723708468954,0.11161677,58048.0,58047.0,0.073298]
[1723708469351,0.060297,58048.0,58047.0,0.073298]
[1723708469542,0.060297,58048.0,58047.0,0.066298]
[1723708469849,0.061297,58048.0,58047.0,0.073298]
[1723708470947,0.422097,58048.0,58047.0,0.073298]
[1723708472959,0.421097,58048.0,58047.0,0.066298]
[1723708473160,0.49074348,58048.0,58047.0,0.073298]
[1723708473756,0.49074348,58048.0,58047.0,0.013]
[1723708473959,0.060304,58042.0,58041.0,0.05151727]
[1723708474159,0.00232,58048.0,58047.0,0.067298]
[1723708474457,0.001,58048.0,58047.0,0.067298]
[1723708474959,0.001,58048.0,58047.0,0.073298]
[1723708475361,0.001,58048.0,58047.0,0.067298]
[1723708475557,0.001,58048.0,58047.0,0.072298]
[1723708475963,0.060297,58049.0,58048.0,0.060297]
[1723708476164,0.060297,58048.0,58047.0,0.008]
[1723708476461,0.120594,58048.0,58047.0,0.05957832]
[1723708476657,0.120594,58048.0,58047.0,0.008]
[1723708476862,0.121594,58048.0,58047.0,0.01]
[1723708477555,0.120594,58048.0,58047.0,0.005]
[1723708477756,0.060298,58047.0,58046.0,0.05157832]
[1723708480165,0.060298,58047.0,58046.0,0.05857832]
[1723708480461,0.060298,58047.0,58046.0,0.05861955]
[1723708480660,0.060298,58047.0,58046.0,0.007]
[1723708481559,0.060298,58047.0,58046.0,0.067299]
[1723708482360,0.060298,58047.0,58046.0,0.063299]
[1723708482562,0.060298,58047.0,58046.0,0.067299]
[1723708483354,0.060298,58047.0,58046.0,0.07370288]
[1723708484157,0.060298,58047.0,58046.0,3.84370288]
[1723708484351,0.060298,58047.0,58046.0,3.91243678]
[1723708484564,0.060298,58047.0,58046.0,3.91143678]
[1723708485563,0.060298,58047.0,58046.0,3.9040329]
[1723708486151,0.14615493,58050.0,58049.0,0.060296]
[1723708486865,0.060296,58050.0,58049.0,0.060296]
[1723708487268,0.00025849,58052.0,58051.0,0.060294]
[1723708488069,0.06901371,58052.0,58051.0,0.060294]
[1723708488259,0.06901371,58052.0,58051.0,0.421094]
[1723708488562,0.00425849,58052.0,58051.0,0.421094]
[1723708489076,0.07301371,58052.0,58051.0,0.421094]
[1723708489458,0.00425849,58052.0,58051.0,0.421094]
[1723708489660,0.12484449,58052.0,58051.0,0.002]
[1723708489864,0.17574449,58052.0,58051.0,0.002]
[1723708490063,0.17174449,58052.0,58051.0,0.003]
[1723708490468,0.25768353,58052.0,58051.0,0.05463427]
[1723708490665,0.25768353,58052.0,58051.0,0.003]
[1723708491061,0.17174449,58052.0,58051.0,0.003]
[1723708491366,0.71646321,58052.0,58051.0,0.003]
[1723708491971,0.71646321,58052.0,58051.0,0.001]
[1723708492464,0.72246321,58052.0,58051.0,0.002]
[1723708492869,0.21166321,58052.0,58051.0,0.002]
[1723708493573,0.060296,58049.0,58046.0,0.41243427]
[1723708493774,0.060304,58042.0,58041.0,0.05163427]
[1723708494070,0.421104,58042.0,58041.0,0.05163427]
[1723708494571,0.060305,58041.0,58040.0,0.05189276]
[1723708495457,0.060305,58041.0,58040.0,0.11219876]
[1723708495658,0.06868587,58043.0,58042.0,0.060304]
[1723708495863,0.060302,58044.0,58043.0,0.060303]
[1723708496464,0.12899005,58044.0,58043.0,0.060303]
[1723708497376,0.06868805,58046.0,58044.0,0.060302]
[1723708497667,0.06868805,58046.0,58044.0,0.11191286]
[1723708498062,0.06868805,58046.0,58045.0,3.77]
[1723708498675,0.12998805,58046.0,58045.0,3.77]
[1723708499272,0.12998805,58046.0,58045.0,3.82161086]
[1723708499770,0.3628,58046.0,58042.0,0.05161086]
[1723708499963,0.12898999,58043.0,58042.0,0.05161086]
[1723708500160,0.060303,58043.0,58042.0,0.05161086]
[1723708500366,0.060303,58043.0,58042.0,3.82161086]
[1723708500876,0.060303,58043.0,58042.0,3.82361086]
[1723708501772,0.060303,58043.0,58042.0,3.772]
[1723708501773,0.12898415,58043.0,58042.0,3.772]
[1723708502375,0.12898415,58043.0,58042.0,3.835304]
[1723708502574,0.060303,58043.0,58042.0,3.835304]
[1723708503075,0.060303,58043.0,58042.0,3.832304]
[1723708503378,0.067303,58043.0,58042.0,3.830304]
[1723708503874,0.063303,58043.0,58042.0,3.830304]
[1723708504064,0.065303,58043.0,58042.0,3.830304]
[1723708504264,0.002,58043.0,58042.0,3.830304]
[1723708504473,0.001,58043.0,58042.0,3.880204]
[1723708504671,0.001,58043.0,58042.0,3.9490407]
[1723708505980,0.06868115,58046.0,58044.0,0.060301]
[1723708507067,0.06868115,58046.0,58045.0,0.0516051]
[1723708507279,0.07368115,58046.0,58045.0,0.0516051]
[1723708507667,0.13398015,58046.0,58045.0,0.0516051]
[1723708507863,0.13398015,58046.0,58044.0,0.060301]
[1723708508275,0.13098015,58046.0,58044.0,0.060301]
[1723708508479,0.0603,58045.0,58044.0,0.060301]
[1723708510280,0.07568115,58046.0,58045.0,0.060301]
[1723708510480,0.07168115,58046.0,58045.0,0.060301]
[1723708510874,0.06868115,58046.0,58045.0,0.060301]
[1723708511382,0.060299,58047.0,58046.0,0.060299]
[1723708511579,0.060299,58047.0,58046.0,0.11190575]
[1723708512380,0.421095,58051.0,58042.0,3.89638639]
[1723708512579,0.06868721,58046.0,58045.0,0.060301]
[1723708512783,0.06868721,58047.0,58046.0,0.060299]
[1723708512984,0.06868721,58048.0,58047.0,0.060298]
[1723708513179,0.05251734,58052.0,58051.0,0.060294]
[1723708513374,0.00099849,58052.0,58051.0,0.32826766]
[1723708513581,0.00099849,58052.0,58051.0,0.58619715]
[1723708514480,0.00099849,58052.0,58051.0,0.65495536]
[1723708514676,0.05150057,58058.0,58052.0,0.577053]
[1723708514988,0.00120001,58063.0,58062.0,0.060283]
[1723708515183,0.05150057,58067.0,58066.0,0.060279]
[1723708515490,0.11177657,58069.0,58066.0,0.060279]
[1723708515684,0.11177657,58069.0,58065.0,0.05151312]
[1723708515685,0.060276,58069.0,58065.0,0.05151312]
[1723708515985,0.05150057,58069.0,58068.0,0.060277]
[1723708516384,0.05150057,58072.0,58068.0,0.060277]
[1723708516576,0.11177357,58072.0,58069.0,0.060276]
[1723708516772,0.05150057,58071.0,58069.0,0.060276]
[1723708516975,0.05150057,58071.0,58070.0,0.060275]
[1723708517182,0.05150057,58072.0,58070.0,0.060275]
[1723708517388,0.41892336,58073.0,58070.0,0.060275]
[1723708517681,0.014,58072.0,58070.0,0.060275]
[1723708517886,0.027,58072.0,58070.0,0.060275]
[1723708518290,0.13877357,58072.0,58070.0,0.060275]
[1723708518474,0.060274,58071.0,58070.0,0.001]
[1723708519673,0.060274,58071.0,58070.0,0.002]
[1723708520085,0.060274,58071.0,58068.0,0.060276]
[1723708520287,0.087274,58071.0,58070.0,0.002]
[1723708521187,0.074274,58071.0,58070.0,0.001]
[1723708521494,0.087274,58071.0,58070.0,0.001]
[1723708521785,0.060276,58069.0,58068.0,0.001]
[1723708522082,0.060276,58069.0,58068.0,0.002]
[1723708522882,0.060276,58069.0,58068.0,0.001]
[1723708523481,0.073276,58069.0,58068.0,0.001]
[1723708523881,0.073276,58069.0,58068.0,0.061277]
[1723708524383,0.086276,58069.0,58068.0,0.062277]
[1723708525388,0.3216,58081.0,58080.0,0.060264]
[1723708525584,0.060262,58083.0,58080.0,0.3608]
[1723708525787,0.3216,58091.0,58080.0,0.3608]
[1723708525980,0.060257,58087.0,58086.0,0.421057]
[1723708526183,0.3216,58091.0,58086.0,0.3608]
[1723708526485,0.060256,58088.0,58086.0,0.3608]
[1723708526683,0.060256,58088.0,58087.0,0.060257]
[1723708527580,0.38863724,58091.0,58086.0,0.3608]
[1723708527991,0.39663724,58091.0,58090.0,0.060254]
[1723708529491,0.07503724,58091.0,58090.0,0.060254]
[1723708529789,0.06703724,58091.0,58090.0,0.060254]
[1723708530185,0.06703724,58091.0,58090.0,0.059514]
[1723708530186,0.065253,58091.0,58090.0,0.059514]
[1723708530390,0.065253,58091.0,58090.0,0.060514]
[1723708530883,0.060253,58091.0,58090.0,0.002]
[1723708531695,0.120507,58091.0,58090.0,0.002]
[1723708531988,0.060263,58082.0,58081.0,0.060263]
[1723708532788,0.060259,58086.0,58081.0,0.25730644]
[1723708532989,0.060259,58086.0,58085.0,0.060259]
[1723708534196,0.064259,58086.0,58085.0,0.060259]
[1723708535993,0.066259,58086.0,58085.0,0.060259]
[1723708537392,0.066259,58086.0,58085.0,0.421059]
[1723708538193,0.066259,58086.0,58085.0,0.60268796]
[1723708538689,0.066259,58086.0,58085.0,0.60975168]
[1723708539089,0.066259,58086.0,58085.0,0.3608]
[1723708540399,0.066259,58086.0,58085.0,0.421059]
[1723708543589,0.066259,58086.0,58085.0,0.060259]
[1723708544892,0.066259,58086.0,58083.0,0.3608]
[1723708544893,0.12052,58084.0,58083.0,0.3608]
[1723708545094,0.06026,58084.0,58083.0,0.3608]
[1723708545693,0.06026,58084.0,58083.0,0.421061]
[1723708546198,0.06126,58084.0,58083.0,0.421061]
[1723708546395,0.06326,58084.0,58083.0,0.421061]
[1723708546992,0.06326,58084.0,58083.0,0.3608]
[1723708548908,0.06326,58084.0,58083.0,0.421061]
[1723708549396,0.11476057,58084.0,58083.0,0.421061]
[1723708549798,0.06326,58084.0,58083.0,0.421061]
[1723708550192,0.11476057,58084.0,58083.0,0.421061]
[1723708551006,0.11476057,58084.0,58083.0,0.060261]
[1723708551404,0.06326,58084.0,58083.0,0.060261]
[1723708551994,0.060262,58082.0,58081.0,0.05151312]
[1723708552397,0.060263,58081.0,58080.0,0.3608]
[1723708552599,0.060265,58079.0,58078.0,0.00707703]
[1723708552894,0.120534,58077.0,58075.0,0.06874315]
[1723708553210,0.120534,58077.0,58073.0,0.41232588]
[1723708553394,0.120534,58077.0,58074.0,0.05152588]
[1723708554200,0.120534,58077.0,58076.0,0.00725826]
[1723708554603,0.120534,58077.0,58076.0,0.05878414]
[1723708555293,0.120534,58077.0,58076.0,0.00725826]
[1723708555498,0.18925133,58077.0,58076.0,0.00725826]
[1723708555795,0.1960345,58077.0,58076.0,0.00025826]
[1723708556501,0.1960345,58077.0,58076.0,0.00225826]
[1723708559408,0.060267,58077.0,58076.0,0.00225826]
[1723708560907,0.12898433,58077.0,58076.0,0.00225826]
[1723708561216,0.060267,58077.0,58076.0,0.00225826]
[1723708561804,0.06871733,58078.0,58076.0,0.00225826]
[1723708562012,0.06871733,58081.0,58077.0,0.06874315]
[1723708562309,0.06871733,58083.0,58080.0,0.42955592]
[1723708562812,0.12897733,58084.0,58080.0,0.42955592]
[1723708563006,0.06871733,58084.0,58083.0,0.060261]
[1723708563212,0.06871733,58085.0,58084.0,0.06026]
[1723708563806,0.05149384,58086.0,58084.0,5.42899229]
[1723708564007,0.05149504,58091.0,58085.0,0.6799866]
[1723708564207,0.05149504,58092.0,58090.0,0.41234443]
[1723708564408,0.05149504,58092.0,58090.0,0.3608]
[1723708564715,0.02808681,58101.0,58091.0,1.30610702]
[1723708565009,0.05149053,58104.0,58100.0,0.06871155]
[1723708565218,0.060238,58106.0,58103.0,0.42104]
[1723708565406,0.05149053,58107.0,58103.0,0.3608]
[1723708565607,0.05149053,58107.0,58106.0,0.060237]
[1723708565807,0.05149053,58108.0,58106.0,0.060237]
[1723708566203,0.05149053,58109.0,58107.0,0.31749755]
[1723708566716,0.05149053,58110.0,58107.0,0.059496]
[1723708567018,0.05149053,58110.0,58108.0,0.25726155]
[1723708567214,0.05149053,58111.0,58108.0,0.25726155]
[1723708567415,0.05149053,58111.0,58107.0,0.059496]
[1723708567719,0.007,58109.0,58107.0,0.060496]
[1723708569007,0.007,58109.0,58108.0,0.67839458]
[1723708569315,0.007,58109.0,58108.0,1.37774296]
[1723708569616,0.007,58109.0,58108.0,4.37410338]
[1723708570009,0.001,58110.0,58109.0,0.060234]
[1723708570213,0.007,58111.0,58110.0,0.060233]
[1723708570518,0.007,58111.0,58110.0,0.31947775]
[1723708571033,0.421029,58114.0,58110.0,0.25924475]
[1723708571224,0.05149053,58118.0,58117.0,0.060226]
[1723708571518,0.060223,58120.0,58117.0,0.31960219]
[1723708572318,0.00678394,58122.0,58113.0,0.42103]
[1723708572319,0.060225,58118.0,58113.0,0.42103]
[1723708572617,0.060225,58118.0,58114.0,0.060228]
[1723708573208,0.060225,58118.0,58115.0,0.3191592]
[1723708573721,0.066225,58118.0,58115.0,0.060227]
[1723708573915,0.066225,58118.0,58114.0,0.3608]
[1723708574115,0.007,58118.0,58117.0,0.061226]
[1723708574312,0.001,58118.0,58117.0,0.061226]
[1723708574516,0.007,58118.0,58117.0,0.31763949]
[1723708574721,0.007,58118.0,58117.0,0.31663949]
[1723708576013,0.067225,58118.0,58117.0,0.25641349]
[1723708576215,0.060226,58117.0,58115.0,0.062228]
[1723708576514,0.060226,58117.0,58115.0,0.061228]
[1723708576720,0.060226,58117.0,58115.0,0.060228]
[1723708577414,0.060226,58117.0,58116.0,0.060227]
[1723708577611,0.061226,58117.0,58116.0,0.060227]
[1723708577815,0.001,58117.0,58116.0,0.50854568]
[1723708578020,0.060211,58132.0,58119.0,0.060223]
[1723708578219,0.3608,58135.0,58126.0,0.3608]
[1723708578220,0.36200001,58135.0,58126.0,0.3608]
[1723708578425,0.3608,58135.0,58126.0,0.3608]
[1723708578626,0.421007,58135.0,58133.0,0.060209]
[1723708579124,0.06021,58133.0,58126.0,0.3608]
[1723708579327,0.060211,58132.0,58126.0,0.3608]
[1723708579531,0.060215,58127.0,58126.0,0.3608]
[1723708579724,0.060135,58127.0,58126.0,0.3608]
[1723708580230,0.3668,58135.0,58130.0,0.060212]
[1723708580526,0.3668,58135.0,58127.0,0.060215]
[1723708580726,0.060214,58128.0,58127.0,0.060215]
[1723708582615,0.060214,58128.0,58127.0,0.070215]
[1723708583228,0.060214,58128.0,58127.0,0.079215]
[1723708583433,0.060214,58128.0,58127.0,0.069215]
[1723708583621,0.060214,58128.0,58127.0,0.068215]
[1723708583926,0.060214,58128.0,58127.0,0.076215]
[1723708584328,0.060214,58128.0,58127.0,0.068215]
[1723708584521,0.060214,58128.0,58127.0,0.076215]
[1723708586323,0.060214,58128.0,58127.0,0.068215]
[1723708586537,0.060214,58128.0,58127.0,0.076215]
[1723708586823,0.3608,58135.0,58129.0,0.060213]
[1723708587029,0.060211,58131.0,58129.0,0.060213]
[1723708587228,0.060211,58131.0,58130.0,0.060212]
[1723708587831,0.36796789,58135.0,58130.0,0.060212]
[1723708587832,0.3608,58135.0,58130.0,0.25645954]
[1723708588228,0.3608,58135.0,58134.0,0.060208]
[1723708588432,0.3608,58135.0,58129.0,0.31968465]
[1723708588731,0.3608,58135.0,58129.0,0.060213]
[1723708588732,0.060211,58132.0,58129.0,0.060213]
[1723708588932,0.060212,58131.0,58129.0,0.060213]
[1723708589122,0.3608,58130.0,58129.0,0.060213]
[1723708589534,0.421012,58130.0,58127.0,3.779]
[1723708589826,0.421012,58130.0,58125.0,0.00025826]
[1723708589827,0.3608,58130.0,58125.0,0.00025826]
[1723708590029,0.3608,58130.0,58129.0,0.011]
[1723708590629,0.3608,58130.0,58129.0,0.006]
[1723708590834,0.421012,58130.0,58129.0,0.006]
[1723708591038,0.421012,58130.0,58127.0,0.068215]
[1723708591525,0.421012,58130.0,58129.0,0.005]
[1723708591933,1.11508,58130.0,58127.0,0.008]
[1723708592133,0.0478,58129.0,58125.0,0.00025826]
[1723708592330,0.11170653,58126.0,58125.0,0.00025826]
[1723708592538,0.060216,58126.0,58125.0,0.00025826]
[1723708593919,0.060216,58126.0,58125.0,0.00625826]
[1723708594124,0.060216,58126.0,58125.0,0.01125826]
[1723708595324,0.05149053,58126.0,58125.0,0.07147626]
[1723708595834,0.05249053,58126.0,58125.0,0.06747626]
[1723708596136,0.05349053,58126.0,58125.0,0.07547626]
[1723708596337,0.002,58126.0,58125.0,0.07547626]
[1723708596633,0.3608,58128.0,58127.0,0.060215]
[1723708597027,0.3608,58128.0,58127.0,0.31995375]
[1723708598337,0.05139814,58130.0,58128.0,0.060214]
[1723708598637,0.05139814,58130.0,58129.0,0.25815835]
[1723708598933,0.05143618,58130.0,58129.0,0.25815835]
[1723708599245,0.05143618,58131.0,58130.0,0.060212]
[1723708599431,0.3608,58134.0,58130.0,0.060212]
[1723708599627,0.3608,58134.0,58131.0,0.25855944]
[1723708599925,0.3608,58134.0,58127.0,0.003]
[1723708600237,0.11165223,58130.0,58129.0,0.001]
[1723708600541,0.060212,58130.0,58129.0,0.001]
[1723708600946,0.001,58131.0,58125.0,0.00025826]
[1723708601135,0.0514491,58126.0,58125.0,0.00025826]
[1723708601636,0.001,58131.0,58125.0,0.05174448]
[1723708602039,0.060216,58126.0,58125.0,0.05174448]
[1723708602239,0.060216,58126.0,58125.0,0.00025826]
[1723708602639,0.060211,58131.0,58129.0,0.060212]
[1723708602834,0.060211,58131.0,58130.0,0.05150431]
[1723708603236,0.060212,58130.0,58129.0,0.05250431]
[1723708603439,0.060212,58130.0,58129.0,0.001]
[1723708603942,0.060213,58129.0,58128.0,0.05150431]
[1723708604154,0.060212,58130.0,58126.0,0.05150431]
[1723708604437,0.060215,58127.0,58126.0,0.05150431]
[1723708604741,0.060212,58130.0,58129.0,0.001]
[1723708604941,0.120424,58130.0,58129.0,0.001]
[1723708605237,0.14610482,58130.0,58129.0,0.001]
[1723708605441,0.060212,58130.0,58129.0,0.001]
[1723708605649,0.120424,58130.0,58129.0,0.001]
[1723708605833,0.20631682,58130.0,58129.0,0.001]
[1723708606143,0.060214,58128.0,58127.0,0.05152592]
[1723708606340,0.060215,58127.0,58126.0,0.004]
[1723708607042,0.060215,58127.0,58125.0,0.00025826]
[1723708607238,0.060215,58127.0,58125.0,0.06893149]
[1723708607635,0.060215,58127.0,58126.0,0.004]
[1723708608132,0.060215,58127.0,58126.0,0.064216]
[1723708608331,0.060215,58127.0,58126.0,0.068216]
[1723708609149,0.060215,58127.0,58126.0,0.064216]
[1723708609942,0.060215,58127.0,58126.0,0.068216]
[1723708611549,0.060215,58127.0,58126.0,0.008]
[1723708611945,0.12043,58127.0,58126.0,0.008]
[1723708612141,0.14831313,58127.0,58126.0,0.008]
[1723708612839,0.14831313,58127.0,58126.0,0.004]
[1723708613038,0.14831313,58127.0,58126.0,0.002]
[1723708613347,0.14831313,58127.0,58126.0,0.005]
[1723708613647,0.14831313,58127.0,58126.0,0.003]
[1723708614046,0.120432,58126.0,58125.0,0.00025826]
[1723708614349,0.90263513,58126.0,58125.0,0.00025826]
[1723708614644,0.96285113,58126.0,58125.0,0.00025826]
[1723708614850,0.120446,58120.0,58119.0,0.0515662]
[1723708615052,0.68484338,58120.0,58116.0,0.051774]
[1723708615350,0.120452,58117.0,58116.0,0.0002078]
[1723708616549,0.120452,58117.0,58116.0,0.0122078]
[1723708616849,0.00120001,58120.0,58119.0,0.060224]
[1723708617059,0.05147378,58121.0,58120.0,0.060223]
[1723708617244,0.11169578,58121.0,58120.0,0.06868985]
[1723708617445,0.060223,58120.0,58119.0,0.30948872]
[1723708617753,0.060225,58118.0,58117.0,0.060226]
[1723708617955,0.11169577,58118.0,58117.0,0.060226]
[1723708618342,0.05147077,58118.0,58117.0,0.060226]
[1723708618549,0.00025672,58122.0,58117.0,0.68734258]
[1723708618550,0.05147077,58120.0,58117.0,0.68734258]
[1723708618747,0.05147077,58121.0,58120.0,0.060223]
[1723708618941,0.05172749,58122.0,58121.0,0.060222]
[1723708619155,0.00025672,58122.0,58121.0,0.11173888]
[1723708619343,0.00025672,58122.0,58121.0,0.11174022]
[1723708619854,0.00025672,58122.0,58121.0,0.060222]
[1723708620047,0.06047772,58122.0,58121.0,0.060222]
[1723708620848,0.06147772,58122.0,58121.0,0.067222]
[1723708621350,0.06147772,58122.0,58121.0,0.007]
[1723708621556,0.12169872,58122.0,58121.0,0.007]
[1723708621755,1.03785872,58122.0,58121.0,0.007]
[1723708621946,1.0634811,58122.0,58121.0,0.013]
[1723708622145,0.97763772,58122.0,58121.0,0.013]
[1723708622355,1.03785872,58122.0,58121.0,0.013]
[1723708622848,0.97763772,58122.0,58121.0,0.013]
[1723708623045,0.06147772,58122.0,58121.0,0.013]